bitfinex-derivatives/quotes_BTCF0:USTF0_20250704
["timestamp","ask_amount","ask_price","bid_price","bid_amount"]
[1751625754254,1.07760366,109020.0,109010.0,0.3468]
[1751625756359,1.43840366,109020.0,109010.0,0.3468]
[1751625761765,1.43840366,109020.0,109010.0,1.10001418]
[1751625761766,1.0159509,109020.0,109010.0,1.10001418]
[1751625761968,1.0159509,109020.0,109010.0,1.13021418]
[1751625761969,0.1843909,109020.0,109010.0,1.13021418]
[1751625762169,0.001,109020.0,109010.0,2.20428456]
[1751625762471,0.1843909,109020.0,109010.0,2.21364237]
[1751625763772,0.1843909,109020.0,109010.0,1.96383599]
[1751625765173,0.1843909,109020.0,109010.0,2.21364237]
[1751625765674,0.1843909,109020.0,109010.0,1.96383599]
[1751625766672,0.1843909,109020.0,109010.0,2.21364237]
[1751625767573,0.1843909,109020.0,109010.0,1.96383599]
[1751625768075,0.1843909,109020.0,109010.0,2.21364237]
[1751625768475,0.1843909,109020.0,109010.0,1.96383599]
[1751625769777,0.1843909,109020.0,109010.0,1.78037199]
[1751625769978,0.1843909,109020.0,109010.0,1.96383599]
[1751625771081,0.1843909,109020.0,109010.0,1.53037199]
[1751625771377,0.1843909,109020.0,109010.0,1.71383599]
[1751625772678,0.1843909,109020.0,109010.0,1.53037199]
[1751625775880,0.1843909,109020.0,109010.0,1.28056561]
[1751625776179,0.1843909,109020.0,109010.0,1.53037199]
[1751625780881,0.1843909,109020.0,109010.0,1.16957199]
[1751625781179,0.1843909,109020.0,109010.0,1.53037199]
[1751625783885,0.1843909,109020.0,109010.0,1.28056561]
[1751625784085,0.1843909,109020.0,109010.0,1.53037199]
[1751625786992,0.1843909,109020.0,109010.0,0.96056561]
[1751625787183,0.43419728,109020.0,109010.0,1.52037199]
[1751625787691,1.40530366,109020.0,109010.0,0.4954078]
[1751625787892,1.46590366,109020.0,109010.0,0.4954078]
[1751625788287,1.46590366,109020.0,109010.0,0.312]
[1751625788488,1.47495857,109020.0,109010.0,0.312]
[1751625788791,1.13590366,109020.0,109010.0,0.4954078]
[1751625788988,1.13590366,109020.0,109010.0,0.312]
[1751625789393,1.13590366,109020.0,109010.0,0.4954078]
[1751625791494,1.14487207,109020.0,109010.0,0.4954078]
[1751625792495,0.64525931,109020.0,109010.0,0.4954078]
[1751625792695,1.14487207,109020.0,109010.0,0.4954078]
[1751625796095,0.78407207,109020.0,109010.0,0.4954078]
[1751625796294,1.14487207,109020.0,109010.0,0.4954078]
[1751625796997,1.13590366,109020.0,109010.0,0.4954078]
[1751625797800,1.13590366,109020.0,109010.0,0.312]
[1751625798200,1.13590366,109020.0,109010.0,0.4954077]
[1751625798401,1.13590366,109020.0,109010.0,0.312]
[1751625799101,1.49590366,109020.0,109010.0,0.312]
[1751625800099,1.74571004,109020.0,109010.0,0.312]
[1751625800298,1.49590366,109020.0,109010.0,0.312]
[1751625800597,1.50501917,109020.0,109010.0,0.312]
[1751625801900,1.73689917,109020.0,109010.0,0.312]
[1751625802298,1.98670555,109020.0,109010.0,0.2803738]
[1751625802501,0.1834245,109000.0,108990.0,0.00183495]
[1751625802704,1.87563726,109000.0,108990.0,0.27183495]
[1751625802898,1.97313726,109000.0,108990.0,0.27183495]
[1751625803603,1.97313726,109000.0,108990.0,0.27483495]
[1751625803799,1.7236235,109000.0,108990.0,0.27483495]
[1751625804597,1.7246235,109000.0,108990.0,0.27883495]
[1751625804796,1.7246235,109000.0,108990.0,0.46227635]
[1751625805802,1.7246235,109000.0,108990.0,0.27883495]
[1751625806202,1.7246235,109000.0,108990.0,0.46227635]
[1751625814305,1.7246235,109000.0,108990.0,0.27883495]
[1751625816008,2.0946235,109000.0,108990.0,0.27883495]
[1751625819912,2.0946235,109000.0,108990.0,0.31544127]
[1751625823414,2.4554235,109000.0,108990.0,0.31544127]
[1751625825916,2.7055778,109000.0,108990.0,0.31544127]
[1751625826221,2.7055778,109000.0,108990.0,0.34326209]
[1751625832422,2.7055778,109000.0,108990.0,0.34335717]
[1751625835328,2.7055778,109000.0,108990.0,0.34337096]
[1751625838228,2.7055778,109000.0,108990.0,0.32975295]
[1751625838527,2.7055778,109000.0,108990.0,0.34339862]
[1751625838723,2.7055778,109000.0,108990.0,0.32975295]
[1751625838916,2.7055778,109000.0,108990.0,0.34338744]
[1751625841532,2.7055778,109000.0,108990.0,0.32975295]
[1751625841732,2.7055778,109000.0,108990.0,0.36285295]
[1751625842029,2.6735778,109000.0,108990.0,0.39455295]
[1751625844030,1.9519778,109000.0,108990.0,0.39455295]
[1751625844233,2.3127778,109000.0,108990.0,0.39455295]
[1751625846228,2.3127778,109000.0,108990.0,0.39455012]
[1751625847032,1.62703115,109000.0,108990.0,0.69958625]
[1751625847228,1.8771578,109000.0,108990.0,0.91462735]
[1751625848328,1.8771578,109000.0,108990.0,0.62789438]
[1751625849225,2.2071578,109000.0,108990.0,0.86371218]
[1751625849428,2.2071578,109000.0,108990.0,0.87802086]
[1751625849933,2.2071578,109000.0,108990.0,0.44445311]
[1751625850835,2.2071578,109000.0,108990.0,0.4444518]
[1751625851431,2.2071578,109000.0,108990.0,0.6278928]
[1751625852736,2.2071578,109000.0,108990.0,0.66458063]
[1751625855338,2.2071578,109000.0,108990.0,0.61358543]
[1751625855631,2.2071578,109000.0,108990.0,0.62784988]
[1751625855836,2.2071578,109000.0,108990.0,0.62785428]
[1751625858140,2.2071578,109000.0,108990.0,0.87798093]
[1751625858842,1.8463578,109000.0,108990.0,0.87798093]
[1751625859142,2.2071578,109000.0,108990.0,0.87798093]
[1751625861346,2.2071578,109000.0,108990.0,0.62785428]
[1751625861548,2.2071578,109000.0,108990.0,0.87798093]
[1751625864544,2.2373578,109000.0,108990.0,0.69453993]
[1751625865346,2.2373578,109000.0,108990.0,0.44441328]
[1751625866348,2.2373578,109000.0,108990.0,0.62785428]
[1751625869053,2.2373578,109000.0,108990.0,0.59625428]
[1751625869243,1.8765578,109000.0,108990.0,0.59625428]
[1751625869443,2.2373578,109000.0,108990.0,0.59625428]
[1751625869643,2.2698578,109000.0,108990.0,0.59625428]
[1751625874246,1.9090578,109000.0,108990.0,0.59625428]
[1751625874455,2.2698578,109000.0,108990.0,0.59625428]
[1751625874952,2.2698578,109000.0,108990.0,0.41281328]
[1751625875251,2.3008578,109000.0,108990.0,0.38111328]
[1751625875650,2.3008578,109000.0,108990.0,0.41781374]
[1751625876152,2.3008578,109000.0,108990.0,0.60125484]
[1751625876455,2.3008578,109000.0,108990.0,0.56455438]
[1751625877153,2.3008578,109000.0,108990.0,0.3629064]
[1751625877554,2.3008578,109000.0,108990.0,0.3298064]
[1751625880552,2.3008578,109000.0,108990.0,0.32979493]
[1751625886160,1.9400578,109000.0,108990.0,0.32979493]
[1751625886767,2.3008578,109000.0,108990.0,0.32979493]
[1751625886955,2.3008578,109000.0,108990.0,0.38470441]
[1751625888165,2.3008578,109000.0,108990.0,0.32979493]
[1751625888862,2.3008578,109000.0,108990.0,0.38470441]
[1751625890164,1.9400578,109000.0,108990.0,0.38470441]
[1751625890364,2.3008578,109000.0,108990.0,0.38470441]
[1751625891156,1.9400578,109000.0,108990.0,0.38470441]
[1751625891362,2.3008578,109000.0,108990.0,0.38470441]
[1751625892563,2.3008578,109000.0,108990.0,0.20470441]
[1751625893563,2.3008578,109000.0,108990.0,0.18044703]
[1751625893865,2.3008578,109000.0,108990.0,0.37044703]
[1751625894464,2.3008578,109000.0,108990.0,0.31553755]
[1751625898165,2.3008578,109000.0,108990.0,0.37044703]
[1751625901967,2.55098445,109000.0,108990.0,0.31553755]
[1751625904466,2.3008578,109000.0,108990.0,0.31553755]
[1751625906074,1.8006045,109000.0,108990.0,0.31553755]
[1751625906372,2.5326178,109000.0,108990.0,0.31553755]
[1751625906573,2.5326178,109000.0,108990.0,0.43414703]
[1751625909770,1.86887115,109000.0,108990.0,0.64757108]
[1751625909970,2.16887115,109000.0,108990.0,0.68067108]
[1751625910571,2.16887115,109000.0,108990.0,0.86411218]
[1751625911575,2.4189978,109000.0,108990.0,0.86411218]
[1751625913079,2.4189978,109000.0,108990.0,0.68067108]
[1751625914976,1.3554778,109000.0,108990.0,0.86411218]
[1751625915176,1.63691115,109000.0,108990.0,0.86411218]
[1751625915375,1.96691115,109000.0,108990.0,0.86411218]
[1751625915880,1.96691115,109000.0,108990.0,0.61398553]
[1751625916081,1.96691115,109000.0,108990.0,0.86411218]
[1751625917783,2.2170378,109000.0,108990.0,0.61398553]
[1751625918981,2.2170378,109000.0,108990.0,0.65067056]
[1751625920577,2.2170378,109000.0,108990.0,0.61757056]
[1751625920578,1.3854778,109000.0,108990.0,0.61757056]
[1751625920777,0.2044245,109000.0,108990.0,1.23301218]
[1751625920983,1.0359845,109000.0,108990.0,1.23301218]
[1751625921185,1.0359845,109000.0,108990.0,1.1781027]
[1751625921379,0.2044245,109000.0,108990.0,1.25131534]
[1751625921584,1.0159445,109000.0,108990.0,1.25131534]
[1751625921785,0.1844245,109000.0,108990.0,1.25131534]
[1751625922686,0.1844245,109000.0,108990.0,1.61211534]
[1751625926688,0.43455115,109000.0,108990.0,0.99198869]
[1751625926889,0.43455115,109000.0,108990.0,0.88131534]
[1751625927589,0.43455115,109000.0,108990.0,0.8081027]
[1751625928193,0.43455115,109000.0,108990.0,0.86304595]
[1751625930291,0.43455115,109000.0,108990.0,1.22304595]
[1751625936395,0.43455115,109000.0,108990.0,0.88304595]
[1751625938197,0.43455115,109000.0,108990.0,0.8281027]
[1751625939396,0.43455115,109000.0,108990.0,1.20131534]
[1751625939596,0.43455115,109000.0,108990.0,1.18306798]
[1751625941198,0.43455115,109000.0,108990.0,1.1281027]
[1751625946704,0.43455115,109000.0,108990.0,1.0961027]
[1751625946908,0.49885115,109000.0,108990.0,1.0961027]
[1751625947100,0.49885115,109000.0,108990.0,1.16931534]
[1751625947501,0.2487245,109000.0,108990.0,1.16931534]
[1751625947700,0.49885115,109000.0,108990.0,1.16931534]
[1751625951414,0.49885115,109000.0,108990.0,0.86931534]
[1751625951712,0.49885115,109000.0,108990.0,1.17931534]
[1751625952507,0.2487245,109000.0,108990.0,1.17931534]
[1751625952707,0.49885115,109000.0,108990.0,1.17931534]
[1751625953819,0.49885115,109000.0,108990.0,1.14611534]
[1751625955916,0.49885115,109000.0,108990.0,0.83611534]
[1751625957319,0.49885115,109000.0,108990.0,0.7941027]
[1751625957716,0.49885115,109000.0,108990.0,1.1341027]
[1751625961322,0.2487245,109000.0,108990.0,1.1341027]
[1751625961520,0.49885115,109000.0,108990.0,1.1341027]
[1751625961924,0.49885115,109000.0,108990.0,0.7941027]
[1751625964728,0.49885115,109000.0,108990.0,0.54397605]
[1751625964924,0.49885115,109000.0,108990.0,0.7941027]
[1751625965326,0.49885115,109000.0,108990.0,0.84915746]
[1751625967936,0.49885115,109000.0,108990.0,1.14915746]
[1751625970635,0.49885115,109000.0,108990.0,1.50995746]
[1751625971933,0.49885115,109000.0,108990.0,1.14915746]
[1751625972134,0.46645115,109000.0,108990.0,1.14915746]
[1751625973135,0.46645115,109000.0,108990.0,0.89903081]
[1751625973336,0.46645115,109000.0,108990.0,1.14915746]
[1751625975334,0.46645115,109000.0,108990.0,1.0941027]
[1751625976033,0.46645115,109000.0,108990.0,1.1242027]
[1751625978144,0.46645115,109000.0,108990.0,1.17925675]
[1751625979735,0.46645115,109000.0,108990.0,0.6291301]
[1751625979935,0.46645115,109000.0,108990.0,0.87925675]
[1751625982645,1.29777115,109000.0,108990.0,0.87925675]
[1751625983845,1.29777115,109000.0,108990.0,0.8242027]
[1751625984143,1.29777115,109000.0,108990.0,0.89741534]
[1751625986148,1.29777115,109000.0,108990.0,0.8242027]
[1751625988245,1.29777115,109000.0,108990.0,0.89741534]
[1751625989044,0.1844245,109000.0,108990.0,1.84834199]
[1751625989240,0.1844245,109000.0,108990.0,1.59821534]
[1751625989441,0.1844245,109000.0,108990.0,1.84834199]
[1751625989640,0.1844245,109000.0,108990.0,1.59821534]
[1751625993045,0.1844245,109000.0,108990.0,0.98808869]
[1751625993351,0.1844245,109000.0,108990.0,1.53821534]
[1751625994557,0.1844245,109000.0,108990.0,1.17741534]
[1751625994859,0.1844245,109000.0,108990.0,1.53821534]
[1751626000459,0.1844245,109000.0,108990.0,1.17741534]
[1751626000658,0.1844245,109000.0,108990.0,1.53821534]
[1751626013469,0.1844245,109000.0,108990.0,1.78834199]
[1751626013664,0.1844245,109000.0,108990.0,1.71512935]
[1751626013865,0.1844245,109000.0,108990.0,1.4650027]
[1751626017172,0.1844245,109000.0,108990.0,1.71512935]
[1751626017473,0.2751312,109010.0,109000.0,0.1834242]
[1751626017663,0.3251312,109010.0,109000.0,1.90043104]
[1751626019265,0.3261312,109010.0,109000.0,1.90343104]
[1751626019466,0.3261312,109010.0,109000.0,1.8300775]
[1751626020069,0.3261312,109010.0,109000.0,1.8320775]
[1751626022975,0.3261312,109010.0,109000.0,1.84140931]
[1751626024877,0.2761312,109010.0,109000.0,1.84140931]
[1751626025677,0.2761312,109010.0,109000.0,1.91476285]
[1751626046295,0.2761312,109010.0,109000.0,1.84140931]
[1751626046990,0.7763845,109010.0,109000.0,0.325]
[1751626047293,1.5421845,109010.0,109000.0,0.3400497]
[1751626048092,1.29205785,109010.0,109000.0,0.3400497]
[1751626048396,1.5421845,109010.0,109000.0,0.32167895]
[1751626049294,1.29205785,109010.0,109000.0,0.32167895]
[1751626050699,0.98205785,109010.0,109000.0,0.32167895]
[1751626051798,0.98205785,109010.0,109000.0,0.50510315]
[1751626052102,1.81301785,109010.0,109000.0,0.32167895]
[1751626052498,2.16301785,109010.0,109000.0,0.32167895]
[1751626052806,1.33205785,109010.0,109000.0,0.32167895]
[1751626053103,2.16301785,109010.0,109000.0,0.50510315]
[1751626054105,2.16305785,109010.0,109000.0,0.50510315]
[1751626058214,2.16305785,109010.0,109000.0,0.56015285]
[1751626059414,1.81305785,109010.0,109000.0,0.56015285]
[1751626059716,1.81305785,109010.0,109000.0,0.8102795]
[1751626063618,1.81305785,109010.0,109000.0,0.56015285]
[1751626063815,1.81305785,109010.0,109000.0,0.8102795]
[1751626066927,1.81305785,109010.0,109000.0,0.56015285]
[1751626068229,1.81305785,109010.0,109000.0,0.50510315]
[1751626070230,1.81305785,109010.0,109000.0,0.56015285]
[1751626070431,1.45225785,109010.0,109000.0,0.56015285]
[1751626070729,1.81305785,109010.0,109000.0,0.56015285]
[1751626072527,1.45225785,109010.0,109000.0,0.56015285]
[1751626072728,1.81305785,109010.0,109000.0,0.56015285]
[1751626073229,1.45225785,109010.0,109000.0,0.56015285]
[1751626073431,1.81305785,109010.0,109000.0,0.56015285]
[1751626073635,1.81305785,109010.0,109000.0,0.59345285]
[1751626076328,1.81305785,109010.0,109000.0,0.5567739]
[1751626076929,1.81305785,109010.0,109000.0,0.53841567]
[1751626084834,1.45225785,109010.0,109000.0,0.53841567]
[1751626085039,1.81305785,109010.0,109000.0,0.53841567]
[1751626088243,1.81305785,109010.0,109000.0,0.59346537]
[1751626091943,1.5629312,109010.0,109000.0,0.59346537]
[1751626092145,1.81305785,109010.0,109000.0,0.59346537]
[1751626093147,1.81305785,109010.0,109000.0,0.5567739]
[1751626094749,1.82305785,109010.0,109000.0,0.5567739]
[1751626095144,2.14305785,109010.0,109000.0,0.3733497]
[1751626095346,2.3731845,109010.0,109000.0,0.0540497]
[1751626095551,1.5421845,109010.0,109000.0,0.32670267]
[1751626095746,2.7882645,109010.0,109000.0,0.32670267]
[1751626095946,2.7882645,109010.0,109000.0,0.28163467]
[1751626096143,2.81013343,109010.0,109000.0,0.23064347]
[1751626097751,1.74753343,109010.0,109000.0,0.23064347]
[1751626097948,2.81013343,109010.0,109000.0,0.23064347]
[1751626099053,1.74753343,109010.0,109000.0,0.23064347]
[1751626099254,2.81009343,109010.0,109000.0,0.23064347]
[1751626101656,2.62661343,109010.0,109000.0,0.23064347]
[1751626102256,2.98741343,109010.0,109000.0,0.23064347]
[1751626104258,0.1834241,109000.0,108990.0,0.03403495]
[1751626104458,1.12614633,109000.0,108990.0,0.11403495]
[1751626105559,1.16014633,109000.0,108990.0,0.12003495]
[1751626109657,1.16014633,109000.0,108990.0,0.08783495]
[1751626111261,1.41027298,109000.0,108990.0,0.08783495]
[1751626112467,1.16014633,109000.0,108990.0,0.08783495]
[1751626119970,2.15920633,109000.0,108990.0,0.08783495]
[1751626120171,2.15920633,109000.0,108990.0,0.15063495]
[1751626125677,2.15920633,109000.0,108990.0,0.36063495]
[1751626127579,2.40933298,109000.0,108990.0,0.29783495]
[1751626127774,2.22110633,109000.0,108990.0,0.29783495]
[1751626128280,2.47123298,109000.0,108990.0,0.29783495]
[1751626128481,2.22110633,109000.0,108990.0,0.29783495]
[1751626133181,2.47123298,109000.0,108990.0,0.16792235]
[1751626138385,2.22110633,109000.0,108990.0,0.16792235]
[1751626141392,0.183441,108990.0,108980.0,0.1527626]
[1751626141592,0.81743346,108990.0,108980.0,0.47041697]
[1751626142686,0.81743346,108990.0,108980.0,0.47441697]
[1751626142881,0.81843346,108990.0,108980.0,0.47741697]
[1751626143086,0.81843346,108990.0,108980.0,0.30741697]
[1751626143691,0.81843346,108990.0,108980.0,0.30641697]
[1751626144591,0.82770806,108990.0,108980.0,0.30641697]
[1751626144993,0.82670806,108990.0,108980.0,0.30241697]
[1751626145291,0.82770806,108990.0,108980.0,0.30441697]
[1751626146095,0.89968631,108990.0,108980.0,0.30441697]
[1751626151294,0.89968631,108990.0,108980.0,0.30341697]
[1751626151693,1.18171296,108990.0,108980.0,0.27041697]
[1751626153599,0.93158631,108990.0,108980.0,0.27041697]
[1751626153800,1.18171296,108990.0,108980.0,0.27041697]
[1751626154299,0.93158631,108990.0,108980.0,0.27041697]
[1751626154796,0.93158631,108990.0,108980.0,0.26841697]
[1751626155598,1.18171296,108990.0,108980.0,0.26841697]
[1751626157499,1.41339296,108990.0,108980.0,0.26841697]
[1751626158194,1.16326631,108990.0,108980.0,0.26841697]
[1751626158902,1.16326631,108990.0,108980.0,0.30011697]
[1751626159294,1.99406631,108990.0,108980.0,0.30011697]
[1751626160095,1.97219738,108990.0,108980.0,0.2475]
[1751626161592,0.64056819,108990.0,108980.0,0.73614298]
[1751626161791,1.72149484,108990.0,108980.0,0.73614298]
[1751626162391,0.28056819,108990.0,108980.0,1.2612112]
[1751626162597,0.28056819,108990.0,108980.0,1.31626963]
[1751626162797,0.25841613,108990.0,108980.0,1.33462244]
[1751626162994,0.07497513,108990.0,108980.0,1.33462244]
[1751626163196,0.25841613,108990.0,108980.0,1.33462244]
[1751626164401,0.50854278,108990.0,108980.0,0.86449579]
[1751626164601,0.50854278,108990.0,108980.0,0.79108455]
[1751626164796,0.50854278,108990.0,108980.0,0.86449579]
[1751626165005,0.50854278,108990.0,108980.0,1.0412112]
[1751626165201,0.50854278,108990.0,108980.0,0.79108455]
[1751626165802,0.50854278,108990.0,108980.0,0.5409579]
[1751626166001,0.50854278,108990.0,108980.0,0.79108455]
[1751626166201,0.43656453,108990.0,108980.0,0.84608048]
[1751626167906,0.18643788,108990.0,108980.0,1.09620713]
[1751626168107,0.43656453,108990.0,108980.0,1.09620713]
[1751626168307,0.43656453,108990.0,108980.0,1.11462244]
[1751626168515,0.43656453,108990.0,108980.0,0.86449579]
[1751626168808,0.43656453,108990.0,108980.0,1.11462244]
[1751626169806,0.43656453,108990.0,108980.0,1.00462244]
[1751626170000,1.97278939,108990.0,108980.0,0.25651124]
[1751626170202,2.06758939,108990.0,108980.0,0.23808391]
[1751626170406,2.08972201,108990.0,108980.0,0.151]
[1751626170704,2.06758939,108990.0,108980.0,0.20598391]
[1751626171008,2.08972193,108990.0,108980.0,0.20598391]
[1751626171905,2.08983969,108990.0,108980.0,0.20598391]
[1751626173211,2.08983969,108990.0,108980.0,0.151]
[1751626175412,2.08983969,108990.0,108980.0,0.1267276]
[1751626175710,2.08983969,108990.0,108980.0,0.27463043]
[1751626176407,2.08983969,108990.0,108980.0,3e-08]
[1751626176614,2.08983969,108990.0,108980.0,4e-08]
[1751626177611,0.1834917,108960.0,108950.0,0.12181953]
[1751626177812,1.26603723,108960.0,108950.0,0.43181953]
[1751626178000,1.26603723,108960.0,108950.0,0.61532803]
[1751626178199,1.26703567,108960.0,108950.0,0.61532803]
[1751626179111,1.26803567,108960.0,108950.0,0.61932803]
[1751626179311,1.26803567,108960.0,108950.0,0.62232803]
[1751626180311,1.26803567,108960.0,108950.0,0.43881953]
[1751626180513,1.26803567,108960.0,108950.0,0.62232803]
[1751626185319,1.26803567,108960.0,108950.0,0.43881953]
[1751626185617,1.26803567,108960.0,108950.0,0.62232803]
[1751626186419,1.26803567,108960.0,108950.0,0.43881953]
[1751626186719,1.26803567,108960.0,108950.0,0.62232813]
[1751626188719,1.26803567,108960.0,108950.0,0.65019636]
[1751626189310,1.65173567,108960.0,108950.0,0.30670385]
[1751626189516,1.33173567,108960.0,108950.0,0.30670385]
[1751626189918,1.33173567,108960.0,108950.0,0.49021235]
[1751626190118,1.33173567,108960.0,108950.0,0.30670385]
[1751626190322,1.33173567,108960.0,108950.0,0.33850385]
[1751626191819,1.36363567,108960.0,108950.0,0.33850385]
[1751626195222,1.37282566,108960.0,108950.0,0.33850385]
[1751626195424,1.36363567,108960.0,108950.0,0.52201235]
[1751626196122,1.36363567,108960.0,108950.0,0.55401235]
[1751626196421,1.11345014,108960.0,108950.0,0.55401235]
[1751626196618,0.43567567,108960.0,108950.0,0.55401235]
[1751626196825,1.01765014,108960.0,108950.0,0.83729788]
[1751626197019,0.18549014,108960.0,108950.0,1.16729788]
[1751626197328,1.01773014,108960.0,108950.0,1.16729788]
[1751626197529,0.18549014,108960.0,108950.0,1.14729788]
[1751626197825,1.01773014,108960.0,108950.0,1.14729788]
[1751626198122,1.01773014,108960.0,108950.0,1.15727443]
[1751626198515,1.01773014,108960.0,108950.0,1.14367271]
[1751626199723,0.18549014,108960.0,108950.0,1.14367271]
[1751626199925,1.01769014,108960.0,108950.0,1.14367271]
[1751626200528,1.01769014,108960.0,108950.0,1.14374315]
[1751626200929,1.01757014,108960.0,108950.0,1.14374315]
[1751626201121,1.01757014,108960.0,108950.0,1.19872706]
[1751626201632,1.01757014,108960.0,108950.0,0.87872706]
[1751626204327,1.01757014,108960.0,108950.0,1.21872706]
[1751626207331,1.01757014,108960.0,108950.0,1.21875634]
[1751626207531,1.01782089,108960.0,108950.0,1.23718367]
[1751626207734,1.01856858,108960.0,108950.0,1.23718367]
[1751626207928,1.01856858,108960.0,108950.0,0.98699814]
[1751626208127,1.01856858,108960.0,108950.0,1.23718367]
[1751626209437,1.01856858,108960.0,108950.0,1.22284089]
[1751626211736,1.01856858,108960.0,108950.0,0.88284089]
[1751626212038,1.01856858,108960.0,108950.0,0.63265536]
[1751626212336,1.04956858,108960.0,108950.0,0.63265536]
[1751626213341,1.04956858,108960.0,108950.0,0.88284089]
[1751626213637,1.04956858,108960.0,108950.0,1.24284089]
[1751626218342,1.04956858,108960.0,108950.0,1.24284089]
[1751626218838,0.21748858,108960.0,108950.0,1.24284089]
[1751626220340,0.21748858,108960.0,108950.0,0.88284089]
[1751626220640,0.21748858,108960.0,108950.0,1.24284089]
[1751626220842,0.21748858,108960.0,108950.0,0.88284089]
[1751626221040,0.21748858,108960.0,108950.0,1.19284089]
[1751626221441,0.21748858,108960.0,108950.0,0.88284089]
[1751626221642,0.21748858,108960.0,108950.0,1.23284089]
[1751626221942,0.21748858,108960.0,108950.0,0.88284089]
[1751626223344,0.21748858,108960.0,108950.0,1.21284089]
[1751626223744,0.46769801,108960.0,108950.0,1.21286479]
[1751626225532,0.46769801,108960.0,108950.0,0.84976479]
[1751626225734,0.50019801,108960.0,108950.0,0.84976479]
[1751626227847,0.50019801,108960.0,108950.0,0.86405993]
[1751626230450,0.50019801,108960.0,108950.0,1.24405993]
[1751626231145,0.50019801,108960.0,108950.0,1.22976479]
[1751626232354,0.50019801,108960.0,108950.0,0.84976479]
[1751626232556,0.46769801,108960.0,108950.0,0.84976479]
[1751626233756,0.46769801,108960.0,108950.0,1.11976479]
[1751626233963,0.46769801,108960.0,108950.0,0.84976479]
[1751626234264,0.00299688,108960.0,108950.0,1.44997422]
[1751626234461,0.3379268,108970.0,108960.0,0.1834915]
[1751626234462,0.3211049,108970.0,108960.0,0.1834915]
[1751626234657,0.3211049,108970.0,108960.0,1.46262626]
[1751626235659,0.3211049,108970.0,108960.0,1.46762626]
[1751626235859,0.3221049,108970.0,108960.0,1.46762626]
[1751626239453,0.001,108970.0,108960.0,1.46762626]
[1751626239658,0.1844746,108970.0,108960.0,1.46762626]
[1751626242865,0.1844746,108970.0,108960.0,1.82842626]
[1751626245471,0.1844746,108970.0,108960.0,2.66022626]
[1751626246963,0.001,108970.0,108960.0,2.66022626]
[1751626247171,0.001,108970.0,108960.0,2.58681036]
[1751626247566,0.001,108970.0,108960.0,2.67857441]
[1751626248369,0.001,108970.0,108960.0,2.75185717]
[1751626248566,0.001,108970.0,108960.0,2.66009312]
[1751626249271,0.001,108970.0,108960.0,2.41985312]
[1751626249472,0.001,108970.0,108960.0,2.70985312]
[1751626251971,0.41389931,108990.0,108980.0,0.183458]
[1751626252170,0.76091492,108990.0,108980.0,1.3706075]
[1751626252473,0.76091492,108990.0,108980.0,1.4014075]
[1751626253170,1.01112435,108990.0,108980.0,1.4014075]
[1751626253368,1.01112435,108990.0,108980.0,1.4024075]
[1751626253568,1.01312435,108990.0,108980.0,1.4024075]
[1751626254170,1.01412435,108990.0,108980.0,1.4024075]
[1751626254671,1.01412435,108990.0,108980.0,1.41167405]
[1751626255977,1.01412435,108990.0,108980.0,1.35673029]
[1751626258375,1.01412435,108990.0,108980.0,1.41167405]
[1751626258976,0.76391492,108990.0,108980.0,1.41167405]
[1751626267679,1.01412435,108990.0,108980.0,1.16146462]
[1751626267870,0.41978742,108990.0,108980.0,1.41167405]
[1751626268072,0.38768742,108990.0,108980.0,1.46188864]
[1751626268276,0.38768742,108990.0,108980.0,1.48068545]
[1751626268579,0.63789685,108990.0,108980.0,1.48068545]
[1751626270381,0.63789685,108990.0,108980.0,1.75068545]
[1751626272083,0.63789685,108990.0,108980.0,1.74068545]
[1751626272282,0.63789685,108990.0,108980.0,1.48068545]
[1751626273379,0.63789685,108990.0,108980.0,1.75068545]
[1751626273785,0.63789685,108990.0,108980.0,1.25026659]
[1751626273984,0.63789685,108990.0,108980.0,1.75068545]
[1751626274581,0.63789685,108990.0,108980.0,1.48068545]
[1751626274879,0.58789685,108990.0,108980.0,1.48068545]
[1751626275587,0.58789685,108990.0,108980.0,1.83068545]
[1751626275787,0.58789685,108990.0,108980.0,1.48068545]
[1751626275981,0.58789685,108990.0,108980.0,0.98026659]
[1751626276181,0.33768742,108990.0,108980.0,1.86068545]
[1751626276381,0.58789685,108990.0,108980.0,1.86068545]
[1751626276781,0.33768742,108990.0,108980.0,1.86068545]
[1751626276987,0.33768742,108990.0,108980.0,1.36026659]
[1751626277186,0.33768742,108990.0,108980.0,1.86068545]
[1751626277486,0.33768742,108990.0,108980.0,1.89378545]
[1751626277886,0.33768742,108990.0,108980.0,1.39336659]
[1751626278187,0.33768742,108990.0,108980.0,1.89378545]
[1751626278387,0.29182612,108990.0,108980.0,1.89378545]
[1751626279290,0.29182612,108990.0,108980.0,1.51378545]
[1751626289496,0.29182612,108990.0,108980.0,1.78378545]
[1751626289698,0.29182612,108990.0,108980.0,1.51378545]
[1751626292001,0.29182612,108990.0,108980.0,1.77378545]
[1751626292300,0.29182612,108990.0,108980.0,1.51378545]
[1751626299305,0.29182612,108990.0,108980.0,1.82378545]
[1751626299507,0.25882612,108990.0,108980.0,1.82378545]
[1751626300903,0.25882612,108990.0,108980.0,1.51378545]
[1751626301907,0.003,108990.0,108980.0,1.82378545]
[1751626303109,0.1864413,108990.0,108980.0,1.82378545]
[1751626305315,0.1864413,108990.0,108980.0,1.46298545]
[1751626305614,0.1864413,108990.0,108980.0,1.7505271]
[1751626305809,0.1864413,108990.0,108980.0,1.82391474]
[1751626306708,0.003,108990.0,108980.0,1.82391474]
[1751626307511,0.1864415,108990.0,108980.0,1.82391474]
[1751626307713,0.1864415,108990.0,108980.0,1.53391474]
[1751626307912,0.1864415,108990.0,108980.0,1.84391474]
[1751626309614,0.1864415,108990.0,108980.0,1.51391474]
[1751626309917,0.1864415,108990.0,108980.0,1.53391474]
[1751626311715,0.43665093,108990.0,108980.0,1.27443876]
[1751626311920,0.43665093,108990.0,108980.0,0.88053876]
[1751626312122,0.50275093,108990.0,108980.0,0.86053876]
[1751626314822,0.50275093,108990.0,108980.0,0.869584]
[1751626316725,0.57556307,108990.0,108980.0,0.869584]
[1751626319026,0.57556307,108990.0,108980.0,1.11979343]
[1751626320925,0.57556307,108990.0,108980.0,0.869584]
[1751626321225,0.57556307,108990.0,108980.0,0.79619636]
[1751626321427,0.57556307,108990.0,108980.0,1.04640579]
[1751626321621,0.57556307,108990.0,108980.0,0.79619636]
[1751626322328,0.57556307,108990.0,108980.0,0.53694169]
[1751626322523,0.57556307,108990.0,108980.0,1.03736055]
[1751626322926,0.57556307,108990.0,108980.0,0.78715112]
[1751626328034,0.57556307,108990.0,108980.0,1.03736055]
[1751626330029,0.57556307,108990.0,108980.0,0.47424169]
[1751626330217,0.60816307,108990.0,108980.0,0.72445112]
[1751626331027,0.60816307,108990.0,108980.0,0.79783876]
[1751626334126,0.60816307,108990.0,108980.0,0.86143876]
[1751626334734,0.60816307,108990.0,108980.0,1.11164819]
[1751626336935,0.57556307,108990.0,108980.0,1.11164819]
[1751626337637,0.57556307,108990.0,108980.0,0.86143876]
[1751626339839,0.57556307,108990.0,108980.0,1.11164819]
[1751626340042,0.54266307,108990.0,108980.0,1.11164819]